{"text_format":"1","workbook":"xlsx","n_sheets":2,"sheets":["اجر وظيفي ","طباعة بيان حالة وظيفية "],"not_rendered":{"charts":0,"images":0,"macros":1,"external_links":0,"defined_names":3,"comments":0,"pivot_tables":0},"unopened":[],"bounds":{"document_bytes":16777216,"sheet_cells":100000,"rows_first":2000,"rows_last":500,"rows_between":2000,"halvings":0,"cell_chars":16384,"cell_head_chars":4096},"cells_cut":0,"cells_raw":0,"read":"whole","date_system":"1900"}

{"sheet":"اجر وظيفي ","index":0,"n_rows":42,"n_cols":36,"rows_kept":42,"cut":false,"hidden":false,"merged":[[36,2,36,8],[1,29,1,31],[0,20,0,33],[3,1,3,8],[0,12,0,19],[1,17,1,19],[1,11,1,13],[1,26,1,28],[1,23,1,25],[1,20,1,22],[7,2,7,8],[13,2,13,8],[23,2,23,8]]}
[null,null,"المسمى الوظيفي ",null,null,null,"تاريخ الميلاد",null,null,null,null,"2016-11-02","التسكين اعتبارا من 2/11/2016 مع الاحتفاظ بالاقدمية بعد التسكين",null,null,null,null,null,null,null,"الترقية اعتبارا من 1/7/2019 مع الاحتفاظ بالاقدمية بعد الترقية "]
[null,"اسم الموظف",null,"المجموعة النوعية","المجموعة والوظيفية","الرقم القومي ",null,"تاريخ التعيين ","التاريخ الفرضي ","الدرجة \nالوظيفية ","تاريخ شغل الدرجة ","المدة من تاريخ الحصول على الدرجة حتى  2/11/2016",null,null,"المدة اللازم قضائها في الدرجة للنقل للمستوى المعادل ","المستوى الوظيفي المعادل في 2/11/2016","المدة اللازمة للمستوى ","المدة المحتفظ بها عند التسكين ( تؤخذ في الاعتبار في الترقية اللاحقة )",null,null,"مجموع المدة المحتفظ بها +2+7+29 بدون تعديل ",null,null,"المدة المحتفظ بها عند التسكين في الفترة  من  2/11/2016حتى 1/7/2019 ( 29يوم 7 شهور 2 سنة )",null,null,"المدة البينية  اللازمة للترقية للمستوى الاعلى ",null,null,"المدة المتبقية ( تؤخذ في الاعتبار في الترقية اللاحقة )",null,null,"االحالة ","المستوى الوظيفي المرقى اليه اعتبارا من 1/7/2019","ملاحظات "]
[null,null,null,null,null,null,null,null,null,null,null,"سنة ","شهر ","يوم",null,null,"يدوي","سنة","شهر","يوم",2,7,29,null,null,null,"سنة","شهر ","يوم","سنة ","شهر ","يوم",null,null,"الاجازات ","الجزاءات "]
[null,"مجموعة وظائف : التخصصية     الوظائف النوعية : الاحصاء والرياضيات  الدرجة :   كبير  "]
[1,"موريس  ابو السعود","كبير أخصائيين إحصاء بدرجة مدير عام","التخصصية - الإحصاء والحاسبات","التخصصية",123,"1963-11-14","1990-11-11","1989-11-11","كبير ","2012-07-01",4,4,1,"لا يوجد ","مدير عام ( بصفة شخصية )",null,4,4,1,6,14,30,7,3,0,null,0,0,null,null,null,null,"D",23,55]
[2," عبد الغنى  محمد","كبير أخصائيين إحصاء بدرجة مدير عام","التخصصية - الإحصاء والحاسبات","التخصصية",44444,"1969-07-24","1996-12-15","1992-06-01","كبير ","2014-07-01",2,4,1,"لا يوجد ","مدير عام ( بصفة شخصية )",null,2,4,1,"-","-","-","-","-","-",null,0,0,null,null,null,null,"F",24,44]
[3,"احمد عبد المعز محمد","كبير أخصائيين إحصاء بدرجة مدير عام","التخصصية - الإحصاء والحاسبات","التخصصية",5555,"1970-11-08","1996-12-15","1995-11-10","كبير ","2016-07-01",0,4,1,"لا يوجد ","مدير عام ( بصفة شخصية )",null,0,4,1,"-","-","-","-","-","-",null,0,0,1,2,3,null,"H",24,55]
[null,null,"قسم : المستشفى الجامعي                   مجموعة وظائف : التخصصية                 الوظائف النوعية : الاحصاء والرياضيات      الدرجة :   الاولى   ",null,null,null,null,null,null,null,null,null,null,null,null,null,null,null,null,null,null,null,null,null,null,null,null,0,0,1,2,3,null,"G",55,44]
[null,null,"المستوى الوظيفي : الاول ( أ)",null,null,null,null,null,null,null,null,null,null,null,null,null,null,null,null,null,null,null,null,null,null,null,null,0,0,1,2,3,null,"J",66,66]
[1,"شرين  حمدان محمد","أخصائي إحصاء أول","التخصصية - الإحصاء والحاسبات","التخصصية",5555,"1974-10-03","1996-12-15","1996-12-15","الدرجة الاولى ","2012-04-01",4,7,1,"اكثر من سنة","الاول ( أ )",null,3,7,1,"-","-","-","-","-","-",null,0,0,1,2,3,null,"L",77,33]
[2,"عبد المنعم  اسماعيل على","أخصائي إحصاء أول","التخصصية - الإحصاء والحاسبات","التخصصية",5566,"1967-09-15","1996-12-15","1992-03-17","الدرجة الاولى ","2012-04-01",4,7,1,"اكثر من سنة","الاول ( أ )",null,3,7,1,"-","-","-","-","-","-",null,0,0,1,2,3,null,"K",88,44]
[null,null,"المستوى الوظيفي : الاول ( ب)",null,null,null,null,null,null,null,null,null,null,null,null,null,null,null,null,null,null,null,null,null,null,null,null,0,0,1,2,3,null,"K"]
[3,"شريف بدر الدين محمد","أخصائي حاسبات الكترونية أول","التخصصية - الإحصاء والحاسبات","التخصصية",565656,"1978-10-17","2003-09-15","2001-11-28",null,"2016-07-01",0,4,1,"اكثر من سنة","الاول ( ب )",null,0,4,1,3,0,0,3,0,0,1,0,0,1,2,3,"مستوفي","الثالث ( أ ) "]
[null,null,"قسم : المستشفى الجامعي                   مجموعة وظائف : التخصصية                 الوظائف النوعية : الاحصاء والرياضيات      الدرجة :   الثانية   ",null,null,null,null,null,null,null,null,null,null,null,null,null,null,null,null,null,null,null,null,null,null,null,null,0,0,1,2,3]
[null,null,"المستوى الوظيفي : الثاني  ( أ )",null,null,null,null,null,null,null,null,null,null,null,null,null,null,null,null,null,null,null,null,null,null,null,null,0,0]
[null,"احمدعبد العال","أخصائي إحصاء وحاسبات الكترونية ثان","التخصصية - الإحصاء والحاسبات","التخصصية",52656,"1971-12-27","1992-01-11","1990-01-11","الدرجة الثانية ","2012-07-01",4,4,1,"اكثر من 3 سنوات","الثاني ( أ )",null,1,4,1,4,"-","-",4,"-","-",3,0,0,1,"-","-","مستوفي"]
[null,"نعمه مد ابراهيم","أخصائى تشغيل حسابات ثان","التخصصية - الإحصاء والحاسبات","التخصصية",566565,"1971-10-17","1995-06-20","1992-03-28","الدرجة الثانية ","2012-07-01",4,4,1,"اكثر من 3 سنوات","الثاني ( أ )",null,1,4,1,4,"-","-",4,"-","-",3,0,0,1,"-","-","مستوفي"]
[null,"زيدان مازن","أخصائي إحصاء ثان","التخصصية - الإحصاء والحاسبات","التخصصية",65565,"1968-05-17","1992-01-11","1990-01-11","الدرجة الثانية ","2012-07-01",4,4,1,"اكثر من 3 سنوات","الثاني ( أ )",null,1,4,1,4,"-","-",4,"-","-",3,0,0,1,"-","-","مستوفي"]
[null,"محمد احمد","أخصائى حاسبات آلية ثان","التخصصية - الإحصاء والحاسبات","التخصصية","55+5+","1977-07-15","2005-05-09","2003-05-20","الدرجة الثانية ","2012-07-01",4,4,1,"اكثر من 3 سنوات","الثاني ( أ )",null,1,4,1,4,"-","-",4,"-","-",3,0,0,1,"-","-","مستوفي"]
[null,"شادية هلال","أخصائي إحصاء وحاسبات الكترونية ثان","التخصصية - الإحصاء والحاسبات","التخصصية",65656,"1977-04-22","1999-08-17","1997-08-17","الدرجة الثانية ","2013-07-01",3,4,1,"اكثر من 3 سنوات","الثاني ( أ )",null,0,4,1,3,"-","-",3,"-","-",3,0,0,0,"-","-","مستوفي"]
[null,"رفاعى محمد","أخصائى حاسبات آلية ثان","التخصصية - الإحصاء والحاسبات","التخصصية",656565,"1969-10-21","2011-09-05","2005-06-20","الدرجة الثانية ","2013-07-01",3,4,1,"اكثر من 3 سنوات","الثاني ( أ )",null,0,4,1,3,"-","-",3,"-","-",3,0,0,0,"-","-","مستوفي"]
[null,null,"المستوى الوظيفي : الثاني  ( ب )",null,null,null,null,null,null,null,null,null,null,null,null,null,null,null,null,null,null,null,null,null,null,null,null,0,0]
[null,"ارينى  فرج","أخصائي إحصاء وحاسبات الكترونية ثان","التخصصية - الإحصاء والحاسبات","التخصصية",265656,"1986-10-18","2011-09-05","2007-09-09","الدرجة الثانية ","2016-07-01",0,4,1,"اكثر من 3 سنوات","الثاني ( ب )",null,0,4,1,3,"-","-",3,"-","-",3,0,0,0,"-","-","مستوفي"]
[null,null,"قسم : المستشفى الجامعي                   مجموعة وظائف : التخصصية                 الوظائف النوعية : الاحصاء والرياضيات      الدرجة :   الثالثة    ",null,null,null,null,null,null,null,null,null,null,null,null,null,null,null,null,null,null,null,null,null,null,null,null,0,0]
[null,null,"المستوى الوظيفي : الثالث  ( أ )",null,null,null,null,null,null,null,null,null,null,null,null,null,null,null,null,null,null,null,null,null,null,null,null,0,0]
[null,"اسماء  احمد","أخصائي إحصاء وحاسبات الكترونية ثالث","التخصصية - الإحصاء والحاسبات","التخصصية",65656,"1983-07-09","2012-05-18","2008-09-18","الدرجة الثانية ","2008-09-18",8,1,15,"اكثر من 3 سنوات وحتى 6 سنوات ","الثالث ( أ )",null,2,1,15,4,9,13,4,9,13,3,0,0,1,9,13,"مستوفي"]
[null,"محمد عمران","أخصائي إحصاء وحاسبات الكترونية ثالث","التخصصية - الإحصاء والحاسبات","التخصصية",65656,"1988-02-04","2012-05-18","2009-03-07","الدرجة الثانية ","2009-03-07",7,7,26,"اكثر من 3 سنوات وحتى 6 سنوات ","الثالث ( أ )",null,1,7,26,4,3,25,4,3,25,3,0,0,1,3,25,"مستوفي"]
[null,null,"المستوى الوظيفي : الثالث  ( ب )",null,null,null,null,null,null,null,null,null,null,null,null,null,null,null,null,null,null,null,null,null,null,null,null,0,0]
[null,"اسامه يو محمود","أخصائى حاسبات آلية ثالث","التخصصية - الإحصاء والحاسبات","التخصصية",6565,"1970-01-09","2011-03-20","2011-03-20","الدرجة الثانية ","2011-03-20",5,7,13,"اكثر من 3 سنوات وحتى 6 سنوات ","الثالث ( ب )",null,2,7,13,5,3,12,5,3,12,3,0,0,2,3,12,"مستوفي"]
[null,null,"المستوى الوظيفي : الثالث  ( ج )",null,null,null,null,null,null,null,null,null,null,null,null,null,null,null,null,null,null,null,null,null,null,null,null,0,0]
[null,"رحاب مرمد خليل","أخصائي حاسبات الكترونية ثالث","التخصصية - الإحصاء والحاسبات","التخصصية",464644,"1991-08-08","2014-05-25","2014-05-25","الدرجة الثانية ","2014-05-25",2,5,8,"اكثر من 3 سنوات وحتى 6 سنوات ","الثالث ( ج )",null,2,5,8,5,1,7,5,1,7,3,0,0,2,1,7,"مستوفي"]
[null,"رحاب مرمدبفقغ خليل","أخصائي تشغيل حاسبات ثالث","التخصصية - الإحصاء والحاسبات","التخصصية",464644,"1992-09-01","2015-05-28","2015-05-28","الدرجة الثانية ","2015-05-28",1,5,5,"اكثر من 3 سنوات وحتى 6 سنوات ","الثالث ( ج )",null,1,5,5,4,1,4,4,1,4,3,0,0,1,1,4,"مستوفي"]
[null,"رحاب مرمد خليل",{"$error":"#N/A"},{"$error":"#N/A"},"التخصصية",464644,null,null,null,null,null,116,10,2,"اكثر من 3 سنوات وحتى 6 سنوات ","الثالث ( ج )",null,116,10,2,4,1,4,4,1,4,null,0,0,4,1,4,"مستوفي"]
[null,"رحاب مرمداتىت خليل","أخصائي تشغيل حاسبات ثالث","التخصصية - الإحصاء والحاسبات","التخصصية",464644,"1992-11-02","2015-05-28","2015-05-28","الدرجة الثانية ","2015-05-28",1,5,5,"اكثر من 3 سنوات وحتى 6 سنوات ","الثالث ( ج )",null,1,5,5,4,1,4,4,1,4,3,0,0,1,1,4,"مستوفي"]
[null,"رحاب مرمدفققغق خليل","أخصائي تشغيل حاسبات ثالث","التخصصية - الإحصاء والحاسبات","التخصصية",464644,"1991-09-28","2015-05-28","2015-05-28","الدرجة الثانية ","2015-05-28",1,5,5,"اكثر من 3 سنوات وحتى 6 سنوات ","الثالث ( ج )",null,1,5,5,4,1,4,4,1,4,3,0,0,1,1,4,"مستوفي"]
[null,"رحاب مرمد قففقىخليل","أخصائي تشغيل حاسبات ثالث","التخصصية - الإحصاء والحاسبات","التخصصية",464644,"1991-12-29","2015-05-28","2015-05-28","الدرجة الثانية ","2015-05-28",1,5,5,"اكثر من 3 سنوات وحتى 6 سنوات ","الثالث ( ج )",null,1,5,5,4,1,4,4,1,4,3,0,0,1,1,4,"مستوفي"]
[null,null,"قسم : المستشفى الجامعي                مجموعة وظائف : الاعلام                               الوظائف النوعية : الاعلام                                 الدرجة :   الاولى",null,null,null,null,null,null,null,null,null,null,null,null,null,null,null,null,null,null,null,null,null,null,null,null,0,0]
[null,null,"المستوى الوظيفي : الاول ( أ )",null,null,null,null,null,null,null,null,null,null,null,null,null,null,null,null,null,null,null,null,null,null,null,null,0,0]
[null,"محمد عم خليل","أخصائى علاقات عامة أول","التخصصية - الإعلام","التخصصية",65,"1964-10-08","1998-03-21","1995-09-02","الدرجة الثانية ","2012-07-01",4,4,1,"اكثر من سنة","الاول ( أ )",null,3,4,1,"-","-","-","-","-","-",null,0,0]
[null,"فاطمة ع المجيد","أخصائى علاقات عامة أول","التخصصية - الإعلام","التخصصية",56,"1970-03-27","1998-03-21","1995-06-20","الدرجة الثانية ","2012-07-01",4,4,1,"اكثر من سنة","الاول ( أ )",null,3,4,1,"-","-","-","-","-","-",null,0,0]
[null,"غادة عبد محمد محمد","أخصائى علاقات عامة أول","التخصصية - الإعلام","التخصصية",656,"1968-02-03","1998-03-21","1998-03-21","الدرجة الثانية ","2012-07-01",4,4,1,"اكثر من سنة","الاول ( أ )",null,3,4,1,"-","-","-","-","-","-",null,0,0]
[null,"حنان ج المجيـــــد","أخصائى علاقات عامة أول","التخصصية - الإعلام","التخصصية",6546,"1967-10-30","1998-03-21","1994-08-25","الدرجة الثانية ","2012-07-01",4,4,1,"اكثر من سنة","الاول ( أ )",null,3,4,1,"-","-","-","-","-","-",null,0,0]

{"sheet":"طباعة بيان حالة وظيفية ","index":1,"n_rows":30,"n_cols":15,"rows_kept":30,"cut":false,"hidden":false,"merged":[[24,2,24,5],[12,2,12,5],[13,2,13,5],[16,2,16,5],[20,2,20,5],[21,3,21,6],[26,3,26,7],[1,3,1,6],[2,1,2,4],[2,7,2,8],[21,7,21,8],[3,2,3,3],[3,4,3,5],[8,2,8,5],[9,2,9,5],[5,2,5,5],[6,2,6,5],[7,2,7,5]]}
[]
[null,null,null,"بيان حالة وظيفية "]
["الاسم : ",{"$f":"$O$5","v":"اسماء  احمد"},null,null,null,"  الرقم القومي : ",null,{"$f":"IF(ISERROR(MATCH($B$3,INDEX(بيانات1,0,2),0)),\"\",INDEX(بيانات1,MATCH($B$3,INDEX(بيانات1,0,2),0),6))","v":65656}]
["جهة العمل : ",null,{"$f":"IF(ISERROR(MATCH($B$3,INDEX(بيانات1,0,3),0)),\"\",INDEX(بيانات1,MATCH($B$3,INDEX(بيانات1,0,3),0),6))","v":""}]
[null,null,null,null,null,null,null,null,null,null,null,null,null,null,"اسماء  احمد"]
["المسمـــــى الوظيفي  : ",null,{"$f":"IF(ISERROR(MATCH($B$3,INDEX(بيانات1,0,2),0)),\"\",INDEX(بيانات1,MATCH($B$3,INDEX(بيانات1,0,2),0),3))","v":"أخصائي إحصاء وحاسبات الكترونية ثالث"}]
["المجموعة الوظيفية : ",null,{"$f":"IF(ISERROR(MATCH($B$3,INDEX(بيانات1,0,2),0)),\"\",INDEX(بيانات1,MATCH($B$3,INDEX(بيانات1,0,2),0),5))","v":"التخصصية"}]
["المجموعـــة النوعية : ",null,{"$f":"IF(ISERROR(MATCH($B$3,INDEX(بيانات1,0,2),0)),\"\",INDEX(بيانات1,MATCH($B$3,INDEX(بيانات1,0,2),0),4))","v":"التخصصية - الإحصاء والحاسبات"}]
["تاريـــــــــــخ التعيين : ",null,{"$f":"IF(ISERROR(MATCH($B$3,INDEX(بيانات1,0,2),0)),\"\",INDEX(بيانات1,MATCH($B$3,INDEX(بيانات1,0,2),0),8))","v":"2012-05-18"}]
["التاريــــــخ الفرضي : ",null,{"$f":"IF(ISERROR(MATCH($B$3,INDEX(بيانات1,0,2),0)),\"\",INDEX(بيانات1,MATCH($B$3,INDEX(بيانات1,0,2),0),9))","v":"2008-09-18"}]
[]
[null,null,null,null,"الحالة قبل التسكين "]
["الـــدرجة الوظيفية : ",null,{"$f":"IF(ISERROR(MATCH($B$3,INDEX(بيانات1,0,2),0)),\"\",INDEX(بيانات1,MATCH($B$3,INDEX(بيانات1,0,2),0),5))","v":"التخصصية"}]
["تاريخ شغل الدرجة : ",null,{"$f":"IF(ISERROR(MATCH($B$3,INDEX(بيانات1,0,2),0)),\"\",INDEX(بيانات1,MATCH($B$3,INDEX(بيانات1,0,2),0),5))","v":"التخصصية"}]
[]
[null,null,null,"المستوى الوظيفي المسكن عليه في 2016/11/2"]
["المستوى الوظيفي : ",null,{"$f":"IF(ISERROR(MATCH($B$3,INDEX(بيانات1,0,2),0)),\"\",INDEX(بيانات1,MATCH($B$3,INDEX(بيانات1,0,2),0),10))","v":"الدرجة الثانية "}]
["المدة المحتفظ بها بعد التسكين : ",null,null,{"$f":"IF(ISERROR(MATCH($B$3,INDEX(بيانات1,0,2),0)),\"\",INDEX(بيانات1,MATCH($B$3,INDEX(بيانات1,0,2),0),14))","v":15},"يوم",{"$f":"IF(ISERROR(MATCH($B$3,INDEX(بيانات1,0,2),0)),\"\",INDEX(بيانات1,MATCH($B$3,INDEX(بيانات1,0,2),0),13))","v":1},"شهر",{"$f":"IF(ISERROR(MATCH($B$3,INDEX(بيانات1,0,2),0)),\"\",INDEX(بيانات1,MATCH($B$3,INDEX(بيانات1,0,2),0),12))","v":8},"سنة"]
[]
[null,null,null,"المستوى المرقى اليه في 2019/7/1"]
["المستوى الوظيفي : ",null,{"$f":"IF(ISERROR(MATCH($B$3,INDEX(بيانات1,0,2),0)),\"\",INDEX(بيانات1,MATCH($B$3,INDEX(بيانات1,0,2),0),34))","v":"00:00:00"}]
["تاريخ شغل  المستوى الوظيفي  : ",null,null,{"$f":"IF(ISERROR(MATCH($B$3,INDEX(بيانات1,0,2),0)),\"\",INDEX(بيانات1,MATCH($B$3,INDEX(بيانات1,0,2),0),10))","v":"الدرجة الثانية "}]
["المدة المحتفظ بها بعد الترقية : ",null,null,{"$f":"IF(ISERROR(MATCH($B$3,INDEX(بيانات1,0,2),0)),\"\",INDEX(بيانات1,MATCH($B$3,INDEX(بيانات1,0,2),0),30))","v":1},"يوم",{"$f":"IF(ISERROR(MATCH($B$3,INDEX(بيانات1,0,2),0)),\"\",INDEX(بيانات1,MATCH($B$3,INDEX(بيانات1,0,2),0),31))","v":9},{"$f":"IF(ISERROR(MATCH($B$3,INDEX(بيانات1,0,2),0)),\"\",INDEX(بيانات1,MATCH($B$3,INDEX(بيانات1,0,2),0),32))","v":13},{"$f":"IF(ISERROR(MATCH($B$3,INDEX(بيانات1,0,3),0)),\"\",INDEX(بيانات1,MATCH($B$3,INDEX(بيانات1,0,3),0),13))","v":""},"سنة"]
[]
["الجزاءات : ",null,{"$f":"IF(ISERROR(MATCH($B$3,INDEX(بيانات1,0,2),0)),\"\",INDEX(بيانات1,MATCH($B$3,INDEX(بيانات1,0,2),0),35))","v":0}]
[]
["الاجازات التي حصل عليها : ",null,null,{"$f":"IF(ISERROR(MATCH($B$3,INDEX(بيانات1,0,2),0)),\"\",INDEX(بيانات1,MATCH($B$3,INDEX(بيانات1,0,2),0),36))","v":0}]
[]
[]
[null,null,null,null,null,null,"يعتمد "]